[Event "21st IPCA World Championship 2022"]
[Site "Ashdod"]
[Date "2022.05.13"]
[Round "6.1"]
[White "Gurbanov, Andrei"]
[Black "Yarmonov, Igor"]
[Result "1/2-1/2"]
[ECO "D36"]
[WhiteElo "2302"]
[BlackElo "2394"]
[Annotator "TA"]
[PlyCount "46"]
[EventDate "2022.05.09"]
[EventType "swiss"]
[EventCountry "ISR"]
[SourceTitle "playchess.com"]
[Source "ChessBase"]
[SourceQuality "1"]
[TimeControl "5400+30"]

{[%evp 17,46,0,37,34,38,31,39,37,52,47,37,37,42,56,64,0,26,0,64,0,22,0,0,0,0,-48,21,-26,35,13,10]} 1. d4 {[%emt 0:00:26]} d5 {[%emt 0:00:24]} 2. c4 {[%emt 0:00:08]} e6 {[%emt 0:00:21]} 3. Nc3 {[%emt 0:00:05]} Nf6 {[%emt 0:00:27]} 4. cxd5 {[%emt 0:00:06]} exd5 {[%emt 0:00:25]} 5. Bg5 {[%emt 0:00:23]} c6 {[%emt 0:01:27]} 6. Qc2 {[%emt 0:00:23]} Nbd7 {[%emt 0:00:47]} 7. e3 {[%emt 0:00:09]} Be7 {[%emt 0:01:42]} 8. Bd3 {[%emt 0:01:48]} h6 {[%emt 0:05:11] 8...Nh5 is a critical line.} 9. Bf4 {[%emt 0:01:29]} O-O {[%emt 0:00:42]} (9... Nh5 $5 {[%cal Rh5f4]}) 10. h3 {[%emt 0:00:31] D36: Queen's Gambit Declined: Exchange Variation: Main line (5 Bg5 c6 6 Qc2).} b6 {[%emt 0:01:08]} 11. Nf3 {[%emt 0:00:57]} c5 {[%emt 0:00:20]} 12. O-O {[%emt 0:01:36] White is slightly better.} Bb7 {[%emt 0:02:21]} 13. Rad1 {[%emt 0:02:02] [#]} c4 $146 {[%emt 0:01:24]} ({Predecessor:} 13... Rc8 14. Qb1 c4 15. Bf5 a6 16. Ne5 Ra8 17. f3 b5 18. a3 Re8 19. e4 Nf8 {1-0 (28) Eynullayev,A (2347)-Cramling Bellon,A (2035) Chess.com INT 2021}) 14. Bf5 {[%emt 0:01:04]} a6 {[%emt 0:00:11]} 15. a4 {[%emt 0:00:53]} Bb4 {[%emt 0:00:36]} 16. Na2 {[%emt 0:01:04] 0x0.001de6014564dp-1022s more active pieces. The black rooks are badly placed.} Be7 {[%emt 0:00:29]} 17. Nc3 {[%emt 0:00:47] Against b5} Bb4 {[%emt 0:00:39]} 18. Na2 {[%emt 0:00:15]} Be7 {[%emt 0:00:19]} 19. Ne5 {[%emt 0:00:21]} b5 $1 {[%emt 0:01:11]} 20. b3 {[%emt 0:03:22]} Nb6 {[%emt 0:02:01]} 21. bxc4 {[%emt 0:03:44]} (21. Rfe1 $11) 21... Nxc4 {[%emt 0:02:43]} (21... dxc4 $15 22. d5 Bd6) 22. Qb3 {[%emt 0:05:36]} (22. Ra1 $142) 22... Nd6 {[%emt 0:01:48]} (22... Qa5 $11) 23. Bd3 $14 {[%emt 0:01:51][%cal Ra4b5]} Qa5 {[%emt 0:02:25] Weighted Error Value: White=0.20 (precise) /Black=0.17 (very precise)} 1/2-1/2

[Event "21st IPCA World Championship 2022"]
[Site "Ashdod"]
[Date "2022.05.13"]
[Round "6.2"]
[White "Obodchuk, Andrei"]
[Black "Campos, Eugenio"]
[Result "1-0"]
[ECO "B38"]
[WhiteElo "2295"]
[BlackElo "2247"]
[Annotator "TA"]
[PlyCount "179"]
[EventDate "2022.05.09"]
[EventType "swiss"]
[EventCountry "ISR"]
[SourceTitle "playchess.com"]
[Source "ChessBase"]
[SourceQuality "1"]
[TimeControl "5400+30"]

{[%evp 24,179,47,55,58,68,69,52,69,60,51,52,43,49,49,47,52,39,72,78,89,54,76,74,81,68,71,36,46,14,10,7,80,78,87,0,0,0,0,0,2,0,0,0,0,-13,-15,-12,4,4,4,0,0,0,0,-6,-6,0,0,0,0,0,0,0,0,0,0,0,0,0,0,0,0,0,0,0,0,0,0,0,0,0,0,0,0,0,0,0,0,0,0,0,0,0,0,0,15,15,276,265,489,323,306,300,272,91,99,84,84,80,83,26,64,29,29,29,29,26,73,73,75,73,73,8,8,0,18,18,18,18,74,74,74,74,74,74,74,74,74,73,74,74,73,74,73,73,74,74,74,74,74,74,74,74,74,74,29991,29992]} 1. Nf3 {[%emt 0:00:18]} Nf6 {[%emt 0:00:11]} 2. c4 {[%emt 0:00:13]} c5 {[%emt 0:00:12]} 3. Nc3 {[%emt 0:00:39]} Nc6 {[%emt 0:00:13]} 4. d4 {[%emt 0:00:14]} cxd4 {[%emt 0:00:21]} 5. Nxd4 {[%emt 0:00:02]} g6 {[%emt 0:00:24]} 6. e4 {[%emt 0:00:15]} d6 {[%emt 0:00:17]} 7. Be2 {[%emt 0:00:26]} Bg7 {[%emt 0:00:09]} 8. Be3 {[%emt 0:00:12]} O-O {[%emt 0:00:14]} 9. O-O {[%emt 0:00:23]} Bd7 {[%emt 0:00:39]} 10. Qd2 {[%emt 0:02:56]} a6 {[%emt 0:00:59]} 11. f3 {[%emt 0:01:44]} Rc8 {[%emt 0:00:15]} 12. Nc2 {[%emt 0:01:07]} Be6 {[%emt 0:03:05]} 13. Rac1 {[%emt 0:03:16]} Re8 {[%emt 0:00:40] B38: Sicilian: Maroczy Bind with 5...Bg7 and 7...0-0.} 14. Nd5 {[%emt 0:03:01]} Nd7 {[%emt 0:03:15]} 15. b3 {[%emt 0:03:34] [#] White is more active.} Qa5 $146 {[%emt 0:03:17] White is slightly better.} ({Predecessor:} 15... f5 16. Nf4 Bf7 17. exf5 gxf5 18. Nh3 Qa5 19. Qxa5 Nxa5 20. Ng5 Bg6 21. f4 Nc6 {1-0 (49) Gschnitzer,O (2425)-Pruefer,S (2200) Germany 2003}) 16. Qxa5 {[%emt 0:08:06]} Nxa5 {[%emt 0:00:12]} 17. Nf4 {[%emt 0:06:33]} Bh6 {[%emt 0:02:40]} 18. Kf2 {[%emt 0:00:16]} Nc6 {[%emt 0:00:41]} 19. h4 {[%emt 0:01:19]} Nc5 {[%emt 0:02:38]} 20. g4 {[%emt 0:03:28][%cal Bg2g4,Bg4g5][%mdl 32]} Ne5 {[%emt 0:02:12]} 21. g5 {[%emt 0:01:20]} Bg7 {[%emt 0:00:22][%cal Bh6g7,Bg7e5,Be5b2][%mdl 32]} 22. Rfd1 {[%emt 0:00:41]} Bd7 {[%emt 0:00:59]} 23. Nd5 {[%emt 0:01:40]} Be6 {[%emt 0:04:13]} 24. Bf1 {[%emt 0:08:16]} Nc6 {[%emt 0:09:06]} 25. Nf4 {[%emt 0:02:38]} Be5 {[%emt 0:03:39]} 26. Nd3 {[%emt 0:05:58]} Nxd3+ {[%emt 0:00:52]} 27. Bxd3 {[%emt 0:00:02][%cal Oh4h5]} f5 {[%emt 0:02:01]} (27... Rf8 $11) 28. exf5 $16 {[%emt 0:01:23]} Bxf5 {[%emt 0:01:51]} 29. f4 {[%emt 0:01:47]} (29. Bxf5 $16 gxf5 30. f4) 29... Rf8 $11 {[%emt 0:01:56][%cal Oe5f4]} 30. Kg3 {[%emt 0:00:16]} Bb2 {[%emt 0:00:34] ...Bxd3 is the strong threat.} 31. Rb1 {[%emt 0:00:06]} Bc3 {[%emt 0:00:25]} 32. Bxf5 {[%emt 0:07:01]} Rxf5 {[%emt 0:00:13]} 33. Rd3 {[%emt 0:00:45]} Bg7 {[%emt 0:00:30]} 34. Nd4 {[%emt 0:03:43]} Bxd4 {[%emt 0:03:50]} 35. Bxd4 {[%emt 0:00:02]} Rcf8 {[%emt 0:00:20]} 36. Be3 {[%emt 0:01:05]} b5 {[%emt 0:00:30]} 37. cxb5 {[%emt 0:05:06]} axb5 {[%emt 0:00:14]} 38. Bd2 {[%emt 0:01:06]} Ra8 {[%emt 0:01:17]} 39. Rb2 {[%emt 0:03:50]} Kf7 {[%emt 0:00:34]} 40. Kg4 {[%emt 0:01:46]} Ra6 {[%emt 0:02:41]} 41. h5 {[%emt 0:00:21]} b4 {[%emt 0:00:47]} 42. hxg6+ {[%emt 0:00:25]} hxg6 {[%emt 0:00:14]} 43. Be3 {[%emt 0:00:57]} Rfa5 {[%emt 0:01:18]} 44. Rdd2 {[%emt 0:00:12]} Ke6 {[%emt 0:01:06]} 45. Rh2 {[%emt 0:00:43]} Rd5 {[%emt 0:01:10]} 46. Rbe2 {[%emt 0:00:45]} Kf7 {[%emt 0:01:05]} 47. Rh7+ {[%emt 0:00:51]} Kg8 {[%emt 0:01:01]} 48. Rh6 {[%emt 0:00:32]} Kg7 {[%emt 0:00:29]} 49. Bc1 {[%emt 0:01:40]} Rd1 {[%emt 0:01:36]} 50. Bb2+ {[%emt 0:02:15]} Kf7 {[%emt 0:02:41]} 51. Rh7+ {[%emt 0:00:22]} Kf8 {[%emt 0:00:37]} 52. Rh8+ {[%emt 0:02:07]} Kf7 {[%emt 0:00:21]} 53. Rc8 {[%emt 0:01:23]} Rg1+ {[%emt 0:02:36]} 54. Kf3 {[%emt 0:00:24]} Rf1+ {[%emt 0:00:35]} 55. Kg3 {[%emt 0:02:17]} Rg1+ {[%emt 0:02:09]} 56. Kf2 {[%emt 0:02:39]} Rh1 {[%emt 0:00:25][%cal Oa6a2]} 57. Kg2 {[%emt 0:00:03]} Rb1 {[%emt 0:00:19][%cal Oa6a2]} 58. Bh8 {[%emt 0:00:24]} Rc1 {[%emt 0:00:23] Against Rc2} 59. Rc7 {[%emt 0:01:04]} Rc5 {[%emt 0:00:23]} 60. Bf6 {[%emt 0:00:47]} Rca5 $2 {[%emt 0:01:13][%mdl 8192]} (60... Kf8 $11) 61. Bxe7 $18 {[%emt 0:01:07]} Rxa2 $2 {[%emt 0:00:15]} (61... Ra7 62. Bxd6+ (62. Rxc6 Rxa2 63. Rxa2 Rxa2+ 64. Kf3 Kxe7 $16) 62... Rxc7 63. Bxc7 Rd5) 62. Bxd6+ {[%emt 0:00:42]} Kg8 {[%emt 0:00:15]} 63. Rxa2 {[%emt 0:00:28]} Rxa2+ {[%emt 0:00:08][%mdl 4096] Endgame KRB-KRN} 64. Kf3 $2 {[%emt 0:01:13]} (64. Kh3 $1 $18 {is the precise move to win.} Nd4 65. Be5 (65. Bxb4 Rb2 $16)) 64... Nd4+ $16 {[%emt 0:08:52]} 65. Ke4 {[%emt 0:00:04]} Nxb3 {[%emt 0:00:31]} 66. Be5 {[%emt 0:00:46]} ({Don't do} 66. Rc8+ Kf7) 66... Nd2+ {[%emt 0:02:02] [#]} 67. Kd3 {[%emt 0:00:34]} (67. Kd5 $1 $16) 67... b3 {[%emt 0:00:42]} 68. Rb7 {[%emt 0:01:29] And now Bc3 would win.} Nf3 $1 {[%emt 0:02:50]} 69. Bc3 {[%emt 0:02:50]} Ra4 {[%emt 0:03:09]} 70. f5 {[%emt 0:02:28]} Nxg5 {[%emt 0:08:00]} (70... gxf5 71. g6 Ra8 72. Rg7+ (72. Rxb3 Re8 $11) 72... Kf8 73. Rh7 $18 (73. Rf7+ Kg8 $18)) (70... Ra6 $1 $11 {deserves consideration.}) 71. fxg6 {[%emt 0:00:07][%cal Rb7b8]} Ra8 {[%emt 0:00:32] Against Rb8+} 72. Bf6 {[%emt 0:01:45]} Ne6 {[%emt 0:00:24]} 73. Ke3 {[%emt 0:03:09]} (73. Rh7 $16 {[%csl Gf6][%cal Rh7h8]} Nf4+ 74. Ke4 Nxg6 75. Rg7+ Kf8 76. Rxg6) 73... Re8 $11 {[%emt 0:01:32] Strongly threatening ...Nc5+.} 74. Kd2 {[%emt 0:01:23] White wants to mate with Rh7.} Rf8 {[%emt 0:00:56]} 75. Bc3 {[%emt 0:00:45] Rh7 would kill now.} Rd8+ {[%emt 0:01:41]} 76. Kc1 {[%emt 0:00:38]} Nd4 {[%emt 0:00:54]} (76... Rd3 $11) 77. Kb2 $16 {[%emt 0:00:27]} Rd6 {[%emt 0:00:25]} 78. Rb8+ {[%emt 0:00:40]} Kg7 {[%emt 0:00:11]} 79. Rb4 {[%emt 0:00:03]} Kxg6 {[%emt 0:00:15]} 80. Bxd4 {[%emt 0:00:02] KRB-KR} Kf5 {[%emt 0:00:25]} 81. Kxb3 {[%emt 0:00:20]} Rd5 {[%emt 0:00:19]} 82. Kc3 {[%emt 0:00:13]} Ke4 {[%emt 0:00:18]} 83. Rb8 {[%emt 0:00:22]} Rd7 {[%emt 0:00:24]} 84. Re8+ {[%emt 0:00:06]} Kf3 {[%emt 0:00:09]} 85. Kd3 {[%emt 0:00:02]} Rd6 {[%emt 0:00:16]} 86. Rf8+ {[%emt 0:00:07]} Kg4 {[%emt 0:00:24]} 87. Ke4 {[%emt 0:00:03]} Re6+ {[%emt 0:00:09]} 88. Be5 {[%emt 0:00:05] Intending Rg8+ and mate.} Re7 {[%emt 0:00:34]} 89. Rg8+ {[%emt 0:00:10]} Kh3 $2 {[%emt 0:00:14][%mdl 8192] [#]} (89... Kh4 $16) 90. Kf3 $1 {[%emt 0:00:34] Weighted Error Value: White=0.05 (flawless) /Black=0.15 (very precise)} 1-0

[Event "21st IPCA World Championship 2022"]
[Site "Ashdod"]
[Date "2022.05.13"]
[Round "6.3"]
[White "Mikheev, Stanislav"]
[Black "Babanov, Aleksandr"]
[Result "1/2-1/2"]
[ECO "A42"]
[WhiteElo "2333"]
[BlackElo "1929"]
[Annotator "TA"]
[PlyCount "110"]
[EventDate "2022.05.09"]
[EventType "swiss"]
[EventCountry "ISR"]
[SourceTitle "playchess.com"]
[Source "ChessBase"]
[SourceQuality "1"]
[TimeControl "5400+30"]

{[%evp 9,110,45,47,39,67,47,56,58,113,89,98,93,100,71,118,105,91,87,96,102,128,116,121,139,113,-112,110,22,77,57,83,60,77,87,104,103,102,45,44,21,25,0,2,-66,0,-50,0,0,0,-68,-62,-87,-23,-92,0,0,0,-7,0,-64,-60,-66,-58,-67,-62,-58,-70,-120,-120,-126,-119,-122,-78,-144,-96,-163,-126,-132,-110,-441,0,0,0,0,0,0,0,0,0,0,0,-27,0,-7,0,-25,0,-8,0,-30,0,-8,0]} 1. d4 {[%emt 0:00:04]} g6 {[%emt 0:00:32]} 2. c4 {[%emt 0:00:40]} Bg7 {[%emt 0:00:06]} 3. Nf3 {[%emt 0:00:45]} d6 {[%emt 0:00:16]} 4. Nc3 {[%emt 0:01:10]} Nd7 {[%emt 0:03:25]} 5. e4 {[%emt 0:00:48]} e5 {[%emt 0:02:49]} 6. Bg5 {[%emt 0:01:00] A42: Modern Defence: Averbakh Variation.} Ne7 {[%emt 0:03:17]} 7. Qd2 {[%emt 0:03:06]} exd4 {[%emt 0:12:29]} 8. Nxd4 {[%emt 0:03:01] [#] And now Nd5 would win. White is slightly better.} Nf6 $146 {[%emt 0:03:30]} (8... Nc5 $14) ({Predecessor:} 8... Ne5 9. Nd5 f6 10. Nxf6+ Bxf6 11. Bxf6 O-O 12. Qg5 Rf7 13. Be2 Qf8 14. Bxe7 Rxe7 {0-1 (23) Ataide,G (1419)-Da Costa,C (1549) Sao Paulo 2019}) 9. Be2 {[%emt 0:05:35]} Bd7 {[%emt 0:02:25]} 10. O-O-O {[%emt 0:03:14]} h6 {[%emt 0:05:52]} 11. Bf4 {[%emt 0:01:47]} Ng4 {[%emt 0:01:55]} (11... Nc6 $142) 12. Bxg4 {[%emt 0:04:31]} Bxg4 {[%emt 0:00:10]} 13. f3 {[%emt 0:00:08]} Bd7 {[%emt 0:00:25]} 14. Rhe1 {[%emt 0:03:15]} g5 {[%emt 0:09:33]} 15. Bg3 {[%emt 0:00:48]} O-O {[%emt 0:02:07]} 16. h4 {[%emt 0:11:30] 0x0.002d057a1eaddp-1022s more active pieces. The black rooks are badly placed.} Ng6 {[%emt 0:05:28]} 17. hxg5 $2 {[%emt 0:01:14]} (17. Nf5 $16) 17... Qxg5 $2 {[%emt 0:01:23]} (17... Bxd4 $17 18. Nd5 Bh8 19. gxh6 Kh7) 18. Nde2 {[%emt 0:00:45]} (18. Bf2 $16) 18... Qxd2+ {[%emt 0:00:53]} (18... Bxc3 $11 {keeps the balance.} 19. Qxg5 Bxb2+ 20. Kxb2 hxg5) 19. Rxd2 $16 {[%emt 0:00:03][%cal Oc4c5]} Be6 {[%emt 0:01:09]} 20. Nd5 {[%emt 0:02:01]} Bxd5 {[%emt 0:02:54]} 21. Rxd5 {[%emt 0:00:58]} Ne7 {[%emt 0:02:34]} 22. Rb5 {[%emt 0:07:33]} b6 {[%emt 0:01:23]} 23. Bh4 {[%emt 0:01:32]} (23. Rh5 $16) 23... Ng6 $14 {[%emt 0:01:31]} 24. Bf2 {[%emt 0:00:40]} Ne5 {[%emt 0:00:24] Strongly threatening ...f5.} 25. Kc2 {[%emt 0:02:13]} Nxc4 {[%emt 0:01:07]} 26. Bd4 {[%emt 0:00:57]} (26. Ng3 $11) 26... Ne5 {[%emt 0:02:56]} (26... c5 $15 27. Bxg7 Kxg7) 27. f4 {[%emt 0:02:29]} ({White should play} 27. Bxe5 $11 Bxe5 28. f4) 27... Nc6 {[%emt 0:01:44]} (27... Ng4 $15) 28. Bxg7 $11 {[%emt 0:00:59]} Kxg7 {[%emt 0:00:08]} 29. Kc3 {[%emt 0:00:07]} (29. Kd2 $11) 29... Rae8 $15 {[%emt 0:00:39]} 30. Ng3 {[%emt 0:00:12]} Re6 {[%emt 0:04:20]} (30... Rg8 $17 31. Nh5+ Kf8) 31. Rh5 {[%emt 0:01:43]} (31. Nh5+ $11 Kh8 32. f5) 31... Rh8 {[%emt 0:04:11]} (31... Rg8 $17) 32. Nf5+ $11 {[%emt 0:02:22]} Kf8 {[%emt 0:00:43]} 33. g4 {[%emt 0:01:35]} Ne7 {[%emt 0:11:03][%cal Oe7d5] Hoping for ...Nd5+!} 34. Kd3 {[%emt 0:01:41] [#]} (34. Kd2 $11) 34... Nd5 $1 $15 {[%emt 0:01:37]} 35. Rf1 {[%emt 0:03:46]} Nf6 {[%emt 0:02:33][%csl LRe4,LRg4,LRh5]} 36. Rxh6 {[%emt 0:00:47]} Rxh6 {[%emt 0:00:50]} 37. Nxh6 {[%emt 0:00:03]} Nxe4 {[%emt 0:00:20][%mdl 4096] Endgame ...Nc5+ is the strong threat. KRN-KRN} ({But not} 37... Rxe4 38. g5 Nh5 39. Rh1 $16) 38. g5 {[%emt 0:01:08]} ({White should try} 38. Nf5 $15) 38... Nc5+ $17 {[%emt 0:00:51]} 39. Kd2 {[%emt 0:00:08]} d5 {[%emt 0:02:05]} 40. Ng4 {[%emt 0:01:02]} Ne4+ {[%emt 0:00:20]} 41. Kc2 {[%emt 0:00:56]} (41. Kd3 $142) 41... c5 {[%emt 0:00:11]} (41... Rc6+ $142 42. Kd3 Rc4) 42. Rh1 {[%emt 0:00:22]} (42. Ne3 $17) 42... Kg7 {[%emt 0:03:00]} 43. Rh3 {[%emt 0:10:43] Inhibits Ng3.} d4 {[%emt 0:01:27]} 44. Nh6 $2 {[%emt 0:00:24][%mdl 8192]} (44. Ne5 $17 {is more resistant.}) 44... c4 $2 {[%emt 0:02:16]} ({Better is} 44... Nf2 $19 45. Nf5+ Kg8) 45. Nf5+ $11 {[%emt 0:00:08]} Kg8 {[%emt 0:01:04]} 46. Nxd4 {[%emt 0:00:12]} Rd6 {[%emt 0:00:56]} 47. Nf5 {[%emt 0:01:05]} Rd2+ {[%emt 0:00:31]} 48. Kc1 {[%emt 0:00:03] Black must now prevent Re3.} Rf2 {[%emt 0:00:51]} 49. Ne7+ {[%emt 0:01:56]} Kg7 {[%emt 0:01:14]} 50. Nd5 {[%emt 0:00:13]} Rf1+ {[%emt 0:00:54]} 51. Kc2 {[%emt 0:00:02]} Rf2+ {[%emt 0:00:13]} 52. Kc1 {[%emt 0:00:02]} Rf1+ {[%emt 0:00:59]} 53. Kc2 {[%emt 0:00:02]} Rf2+ {[%emt 0:00:40]} 54. Kc1 {[%emt 0:00:01]} Rf1+ {[%emt 0:00:36]} 55. Kc2 {[%emt 0:00:02]} Rf2+ {[%emt 0:00:28] Weighted Error Value: White=0.48/Black=0.35} 1/2-1/2

[Event "21st IPCA World Championship 2022"]
[Site "Ashdod"]
[Date "2022.05.13"]
[Round "6.4"]
[White "Valenta, Vit Vaclav"]
[Black "Zilberman, Yaacov"]
[Result "0-1"]
[ECO "B80"]
[WhiteElo "2014"]
[BlackElo "2315"]
[Annotator "TA"]
[PlyCount "136"]
[EventDate "2022.05.09"]
[EventType "swiss"]
[EventCountry "ISR"]
[SourceTitle "playchess.com"]
[Source "ChessBase"]
[SourceQuality "1"]
[TimeControl "5400+30"]

{[%evp 23,136,16,22,9,25,0,0,0,0,0,-7,-13,15,-5,0,-40,-39,-47,-29,-65,-62,-76,-66,-75,-75,-75,-26,-73,-76,-66,-68,-74,-14,-14,-16,-33,-16,-15,-16,-31,-5,-60,-52,-55,-55,-54,-51,-60,-50,-77,-55,-101,-95,-96,-87,-94,-75,-76,-70,-71,-74,-101,-92,-101,-90,-87,-89,-89,-80,-89,-88,-89,-88,-152,-87,-95,-95,-95,-91,-156,-95,-284,-284,-284,-284,-284,-284,-272,-207,-207,-200,-151,-178,-143,-125,-312,-322,-276,-143,-206,-206,-6777,-10737,-12829,-12830,-12831,-12831,-12832,-12832,-12834,-9052,-12837,-12837,-29995,-29996]} 1. e4 {[%emt 0:00:07]} c5 {[%emt 0:00:19]} 2. Nc3 {[%emt 0:00:08]} e6 {[%emt 0:00:13]} 3. Nge2 {[%emt 0:00:15]} Nc6 {[%emt 0:00:24]} 4. d4 {[%emt 0:01:10]} cxd4 {[%emt 0:00:12]} 5. Nxd4 {[%emt 0:00:05]} d6 {[%emt 0:01:20]} 6. g3 {[%emt 0:00:41]} Nf6 {[%emt 0:01:48]} 7. Bg2 {[%emt 0:00:40]} Bd7 {[%emt 0:04:04]} 8. O-O {[%emt 0:03:17]} a6 {[%emt 0:00:57]} 9. a4 {[%emt 0:01:46]} Be7 {[%emt 0:00:31]} 10. Be3 {[%emt 0:01:58]} O-O {[%emt 0:01:14]} 11. Nxc6 {[%emt 0:04:37]} Bxc6 {[%emt 0:00:17]} 12. Qe2 {[%emt 0:02:10]} Rc8 {[%emt 0:04:05]} 13. Rfd1 {[%emt 0:01:24] B80: Sicilian Scheveningen: 6 g3 and 6 Be3, including English Attack.} Qc7 {[%emt 0:00:53] [#]} 14. Rac1 $146 {[%emt 0:04:42]} ({Predecessor:} 14. a5 Nd7 15. f4 Bf6 16. Qd2 Bxc3 17. Qxc3 Rfe8 18. Qb4 d5 19. e5 Bb5 20. c3 {½-½ (54) Quesada Perez,Y (2636)-Saric,I (2668) Monzon 2016}) 14... Rfd8 {[%emt 0:03:57]} 15. Rd2 {[%emt 0:04:12] The position is equal.} Qa5 {[%emt 0:04:14]} 16. Rcd1 {[%emt 0:08:38]} h6 {[%emt 0:03:33]} 17. Rd4 {[%emt 0:02:26]} e5 {[%emt 0:02:25]} 18. b4 {[%emt 0:03:56]} Qc7 {[%emt 0:00:16]} 19. R4d2 {[%emt 0:14:11]} Bd7 {[%emt 0:02:10]} 20. Rd3 {[%emt 0:00:40]} Be6 $36 {[%emt 0:01:21][%mdl 2048] Black is pushing.} 21. a5 {[%emt 0:02:53]} Bc4 {[%emt 0:10:38]} 22. Bb6 {[%emt 0:00:38]} Bxd3 {[%emt 0:00:24]} 23. Rxd3 {[%emt 0:00:43]} Qc4 {[%emt 0:02:07] Hoping for ...Rf8.} 24. Bxd8 {[%emt 0:02:12]} Rxd8 {[%emt 0:01:29]} (24... Bxd8 $17 25. Nd1 (25. Bh3 Rb8 $17) 25... Qxb4) 25. Bh3 {[%emt 0:08:41]} (25. Nd1 $11) 25... Qxb4 $17 {[%emt 0:01:05]} 26. Nd5 {[%emt 0:00:34]} Nxd5 {[%emt 0:00:31]} 27. Rxd5 {[%emt 0:00:10]} b5 {[%emt 0:04:10]} ({Better is} 27... g6 $17) 28. axb6 $1 $11 {[%emt 0:01:53]} Qxb6 {[%emt 0:00:17]} 29. Bf1 {[%emt 0:00:34]} Ra8 {[%emt 0:02:04]} 30. Qc4 {[%emt 0:01:49]} g6 {[%emt 0:05:54]} 31. Qb3 {[%emt 0:01:58]} Qc7 {[%emt 0:01:37]} 32. Qc4 {[%emt 0:01:02]} ({White should play} 32. Rd3 $11) 32... Qxc4 $15 {[%emt 0:00:50]} 33. Bxc4 {[%emt 0:00:01][%mdl 4096] Endgame KRB-KRB} a5 $1 {[%emt 0:00:51]} 34. Rd3 {[%emt 0:27:19]} Ra7 {[%emt 0:01:14]} 35. Bd5 {[%emt 0:00:00]} Kg7 {[%emt 0:02:29]} 36. Ra3 {[%emt 0:00:00]} Bd8 {[%emt 0:01:02]} 37. Ra4 {[%emt 0:00:00]} (37. Rb3 $15) 37... Bb6 $17 {[%emt 0:00:34]} 38. Kg2 {[%emt 0:00:00]} Bc5 {[%emt 0:02:13]} 39. c3 {[%emt 0:00:00]} h5 {[%emt 0:01:16]} 40. Bc6 {[%emt 0:00:00]} Rc7 {[%emt 0:02:01]} 41. Bb5 {[%emt 0:00:00]} Bb6 {[%emt 0:00:26]} 42. c4 {[%emt 0:00:00]} f5 {[%emt 0:01:22]} 43. f3 {[%emt 0:00:00]} fxe4 {[%emt 0:01:45]} 44. fxe4 {[%emt 0:00:00]} Rf7 {[%emt 0:01:24]} 45. Ra2 {[%emt 0:00:00] Prevents Rf2+.} g5 {[%emt 0:01:05]} 46. Rd2 {[%emt 0:00:00]} Rf6 {[%emt 0:01:30]} 47. Bc6 {[%emt 0:00:00]} Bc5 {[%emt 0:02:08]} 48. Rb2 {[%emt 0:00:00] [#]} (48. h3 $142) 48... Kh6 {[%emt 0:01:47]} (48... g4 $142 $1 49. h4 Rf3) 49. h3 {[%emt 0:03:21]} g4 {[%emt 0:01:21]} 50. hxg4 {[%emt 0:01:41]} hxg4 {[%emt 0:00:12]} 51. Bd7 {[%emt 0:00:04]} (51. Ra2 $142) 51... Kg5 {[%emt 0:01:04]} (51... Rf7 $142 52. Be8 Rf3) 52. Rb8 $2 {[%emt 0:01:08]} (52. Ra2 $17) 52... Rf2+ $19 {[%emt 0:00:42]} 53. Kh1 {[%emt 0:00:03]} Ra2 {[%emt 0:01:20]} 54. Ra8 {[%emt 0:01:06]} Kf6 {[%emt 0:01:24]} 55. Bc6 {[%emt 0:01:36]} Ke7 {[%emt 0:01:50] Prevents Rf8.} 56. Re8+ {[%emt 0:00:31] [#]} Kf7 $1 {[%emt 0:00:29]} 57. Ra8 {[%emt 0:00:17]} Kg7 {[%emt 0:00:49] Black is more active.} 58. Bd7 {[%emt 0:00:54]} Bf2 {[%emt 0:00:31]} 59. Bc6 $2 {[%emt 0:01:07]} (59. Bxg4 $17 Kf6 60. c5 dxc5 61. Ra6+ Kg5 62. Be6) 59... Bxg3 {[%emt 0:00:54] White must now prevent ...Bf4.} 60. Bd5 {[%emt 0:00:09][%cal Oc4c5]} Bf2 {[%emt 0:06:41]} (60... Kf6 $19 {Threatens to win with ...Bf4.} 61. Rg8 Bf2) 61. Rg8+ {[%emt 0:00:45]} (61. c5 $17 Ra1+ 62. Kg2 Bxc5 63. Kg3) 61... Kh7 {[%emt 0:00:50] And now ...Bc5 would win.} 62. Rxg4 $2 {[%emt 0:00:33]} (62. c5 Ra1+ 63. Kg2 Bxc5 64. Rxg4) 62... Bc5 {[%emt 0:01:37]} 63. Rg8 {[%emt 0:00:35]} a4 {[%emt 0:00:33][%cal Ba5a4,Ba4a3,Ba3a2][%mdl 32]} 64. Ra8 {[%emt 0:00:19]} a3 {[%emt 0:00:10]} 65. Be6 {[%emt 0:00:04]} Rb2 {[%emt 0:00:28]} 66. Bf5+ {[%emt 0:00:27]} Kg7 {[%emt 0:00:27]} 67. Rd8 {[%emt 0:00:36]} a2 {[%emt 0:00:39][%cal Ra2a1]} 68. Rd7+ {[%emt 0:00:05]} Kf6 {[%emt 0:00:30] Weighted Error Value: White=0.22 (precise) /Black=0.14 (very precise)} 0-1